[Event "4NCL 2023-2024"]
[Site "Daventry"]
[Date "2024.05.05"]
[Round "10.4"]
[White "Svane, Frederik"]
[Black "Speelman, Jon S"]
[Result "1-0"]
[ECO "B12"]
[WhiteElo "2637"]
[BlackElo "2497"]
[Annotator "TA"]
[PlyCount "59"]
[EventDate "2023.11.11"]
[EventType "team-tourn"]
[EventCountry "ENG"]
[SourceTitle "playchess.com"]
[Source "ChessBase"]
[SourceQuality "1"]
[TimeControl "40/6000+30:3000+30"]

{[%evp 15,59,16,37,27,27,18,27,32,20,27,27,25,49,31,17,25,15,0,28,22,78,33,52,10,13,9,20,31,104,104,95,95,133,138,141,138,144,142,138,152,182,186,188,183,313,305]} 1. e4 {[%emt 0:00:06]} c6 {[%emt 0:00:32]} 2. d4 {[%emt 0:00:07]} d5 {[%emt 0:00:11]} 3. e5 {[%emt 0:00:08]} Bf5 {[%emt 0:00:30]} 4. Nf3 {[%emt 0:00:06]} e6 {[%emt 0:00:23]} 5. Be2 {[%emt 0:00:07]} c5 {[%emt 0:04:36]} 6. Be3 {[%emt 0:00:40]} cxd4 {[%emt 0:00:53]} 7. Nxd4 {[%emt 0:00:11]} Ne7 {[%emt 0:00:24]} 8. O-O {[%emt 0:00:54]} Nbc6 {[%emt 0:06:01]} 9. Bb5 {[%emt 0:00:17]} a6 {[%emt 0:04:16]} 10. Bxc6+ {[%emt 0:00:17]} bxc6 {[%emt 0:01:24] [#] Black is weak on the dark squares} 11. c4 $1 {[%emt 0:00:36] White has an edge.} Qd7 {[%emt 0:10:26]} 12. Nc3 {[%emt 0:03:20]} dxc4 {[%emt 0:02:26]} 13. Na4 {[%emt 0:00:10] Excellent horsemanship.} Nd5 {[%emt 0:01:15] Dodges Nb6} 14. Nxf5 {[%emt 0:00:11]} exf5 {[%emt 0:00:05]} 15. Qd4 {[%emt 0:00:10]} Be7 {[%emt 0:01:22]} 16. Qxc4 {[%emt 0:00:32]} O-O {[%emt 0:01:46]} (16... Nxe3 $5 17. fxe3 Rb8 $11) 17. Bc5 $36 {[%emt 0:00:55][%mdl 2048] White is more active.} f4 {[%emt 0:05:30]} (17... Rfe8 $11) 18. Rfe1 {[%emt 0:19:14]} f3 {[%emt 0:05:45]} 19. gxf3 {[%emt 0:06:51]} Rab8 {[%emt 0:07:46]} 20. b3 {[%emt 0:07:31]} ({Don't play} 20. Qxa6 Ra8 21. Qc4 Rxa4 22. Qxa4 Bxc5 $15) 20... Rb5 {[%emt 0:03:09]} 21. Rac1 {[%emt 0:12:12]} Re8 {[%emt 0:12:24]} ({Better is} 21... h5 $14) 22. Qg4 $16 {[%emt 0:09:38] White is more active.} Qxg4+ {[%emt 0:01:43]} 23. fxg4 {[%emt 0:00:08]} Nf4 {[%emt 0:00:05]} 24. Bxe7 {[%emt 0:18:47]} Rxe7 {[%emt 0:00:05]} 25. Rxc6 {[%emt 0:00:08] Threatening mate with Rc8+.} h5 {[%emt 0:00:03]} 26. Rc4 {[%emt 0:03:20]} (26. Rxa6 Rbxe5 27. Rxe5 Rxe5 $15) 26... g5 {[%emt 0:01:28] [#]} 27. h4 $1 {[%emt 0:08:35]} Rbxe5 {[%emt 0:01:52]} (27... hxg4 28. hxg5) 28. Rxe5 {[%emt 0:01:00]} Rxe5 {[%emt 0:00:05]} 29. hxg5 {[%emt 0:00:22]} Ne6 {[%emt 0:03:08]} (29... Nd3 $142 30. gxh5 Rxg5+ 31. Kf1 Rf5) 30. f4 {[%emt 0:02:21] Weighted Error Value: White=0.07 (flawless) /Black=0.22 (precise) .  Mistake:       	---       	Black=3      Inaccurate:     	White=2     	Black=2      OK:         	White=11    	Black=5      Best:        	White=1     	Black=2} ({Weaker is} 30. gxh5 Rxg5+ 31. Kf1 Rxh5 $16) 1-0

[Event "4NCL 2023-2024"]
[Site "Daventry"]
[Date "2024.05.05"]
[Round "10.5"]
[White "Wadsworth, Matthew J"]
[Black "Parligras, Mircea-Emilian"]
[Result "1/2-1/2"]
[ECO "A13"]
[WhiteElo "2470"]
[BlackElo "2561"]
[Annotator "TA"]
[PlyCount "143"]
[EventDate "2023.11.11"]
[EventType "team-tourn"]
[EventCountry "ENG"]
[SourceTitle "playchess.com"]
[Source "ChessBase"]
[SourceQuality "1"]
[TimeControl "40/6000+30:3000+30"]

{[%evp 64,143,8,10,17,0,0,0,0,0,0,0,27,27,27,27,27,27,44,24,14,0,43,43,43,43,95,89,89,100,108,68,58,0,0,0,0,0,0,0,0,0,132,40,31,0,0,0,0,0,15,11,12,16,9,15,24,20,20,22,76,0,0,0,0,0,0,0,0,0,0,0,0,0,0,0,0,0,0,0,0,0]} 1. c4 {[%emt 0:00:07]} e6 {[%emt 0:00:12]} 2. g3 {[%emt 0:00:21]} d5 {[%emt 0:00:15]} 3. Bg2 {[%emt 0:00:17]} dxc4 {[%emt 0:00:26]} 4. Qa4+ {[%emt 0:00:35]} Nd7 {[%emt 0:00:25]} 5. Qxc4 {[%emt 0:00:14]} a6 {[%emt 0:01:20]} 6. Qc2 {[%emt 0:02:04]} Ngf6 {[%emt 0:02:07]} 7. Nf3 {[%emt 0:03:33]} c5 {[%emt 0:00:14]} 8. Nc3 {[%emt 0:00:37]} Qc7 {[%emt 0:04:46] A13: English Opening: 1...e6.} 9. d4 {[%emt 0:00:56]} b5 {[%emt 0:00:54]} 10. Bf4 {[%emt 0:01:12]} Bd6 {[%emt 0:00:24]} 11. Bxd6 {[%emt 0:02:16]} Qxd6 {[%emt 0:01:58]} 12. Ne4 {[%emt 0:00:16]} Nxe4 {[%emt 0:01:00]} 13. Qxe4 {[%emt 0:00:09]} Rb8 {[%emt 0:10:09]} 14. dxc5 {[%emt 0:01:56]} Nxc5 {[%emt 0:06:26]} 15. Qe3 $146 {[%emt 0:00:28]} ({Predecessor:} 15. Qe5 Qxe5 16. Nxe5 Bb7 17. Bxb7 Nxb7 18. Rc1 f6 19. Nd3 Kd7 20. Kd2 Rhc8 21. Ke3 a5 22. b3 Nd6 23. g4 b4 24. Rhd1 e5 25. Nc5+ {½-½ Giri,A (2708)-Sarana,A (2629) Wch Rapid Almaty 2022 (12)}) 15... Bb7 {[%emt 0:01:37]} 16. O-O {[%emt 0:05:06]} O-O {[%emt 0:05:27]} 17. Rfd1 {[%emt 0:05:11]} Qb6 {[%emt 0:04:33]} 18. Rac1 {[%emt 0:04:37]} Rbc8 {[%emt 0:07:57]} 19. Ne5 {[%emt 0:25:26]} Bxg2 {[%emt 0:03:34]} 20. Kxg2 {[%emt 0:00:06]} a5 {[%emt 0:22:41]} 21. b3 {[%emt 0:05:36]} f6 {[%emt 0:04:10]} 22. Nf3 {[%emt 0:02:36]} Rc7 {[%emt 0:01:50]} 23. a3 {[%emt 0:09:13]} b4 {[%emt 0:05:36]} 24. axb4 {[%emt 0:01:57]} Qxb4 {[%emt 0:03:16]} 25. Rc4 {[%emt 0:04:51]} Qb6 {[%emt 0:02:30]} 26. Rdc1 {[%emt 0:04:05]} Rfc8 {[%emt 0:00:06]} 27. h4 {[%emt 0:09:48]} Qd6 {[%emt 0:02:25]} 28. h5 {[%emt 0:03:48]} h6 {[%emt 0:02:42]} 29. Qc3 {[%emt 0:04:54]} Qb6 {[%emt 0:01:32]} 30. Qe3 {[%emt 0:02:09]} Qd6 {[%emt 0:00:16]} 31. Nd4 {[%emt 0:01:58]} Na6 {[%emt 0:04:02]} 32. Rxc7 {[%emt 0:01:01]} Rxc7 {[%emt 0:00:05]} 33. Ra1 {[%emt 0:00:17]} (33. Nxe6 $2 {too greedy.} Rxc1 34. Qxc1 Qxe6 $19) 33... Qd5+ {[%emt 0:02:05]} (33... Rc5 {simplifies} 34. Qxe6+ Qxe6 35. Nxe6 Rxh5 36. Nd8 Rb5) 34. Kg1 {[%emt 0:00:44]} Kf7 {[%emt 0:04:26]} 35. Qd3 {[%emt 0:01:15]} Nb4 {[%emt 0:02:34]} 36. Qg6+ {[%emt 0:00:32]} Kf8 {[%emt 0:00:07]} 37. e3 {[%emt 0:00:56]} Rc5 {[%emt 0:02:45]} 38. Qg4 {[%emt 0:01:46]} Kf7 $1 {[%emt 0:00:18]} 39. Rd1 {[%emt 0:01:22]} Qxh5 {[%emt 0:01:35]} 40. Qxe6+ {[%emt 0:00:58]} Kg6 {[%emt 0:00:49]} 41. Qe4+ {[%emt 0:54:50]} Kf7 {[%emt 0:01:46]} 42. Nf3 {[%emt 0:00:00]} Rd5 {[%emt 0:12:41]} (42... Nd3 $5) 43. Rc1 {[%emt 0:00:00]} Rc5 {[%emt 0:02:16]} 44. Qb7+ {[%emt 0:00:00]} (44. Rxc5 {simplifies} Qxc5 45. Qb7+ Kf8 46. Nd4) 44... Kg6 {[%emt 0:00:11]} (44... Kg8 $14 45. Rxc5 Qxc5) 45. Nh4+ $16 {[%emt 0:00:00]} Kh7 {[%emt 0:00:05] [#]} 46. Rxc5 $1 {[%emt 0:00:00]} Qxc5 {[%emt 0:00:07]} 47. Qe4+ {[%emt 0:00:00]} Kg8 $1 {[%emt 0:02:29]} 48. Ng6 {[%emt 0:00:00]} ({White should try} 48. Nf5 $14 Qf8 49. Nd4) 48... Kf7 $11 {[%emt 0:05:28]} 49. Nh8+ {[%emt 0:00:00]} Kg8 {[%emt 0:00:18]} 50. Ng6 {[%emt 0:00:00]} Kf7 {[%emt 0:00:04]} 51. Nf4 {[%emt 0:00:00]} Qc1+ {[%emt 0:03:25]} 52. Kh2 {[%emt 0:00:00]} Qc6 {[%emt 0:02:39]} (52... Qc8 $1 $11 {remains equal.}) 53. Qg6+ {[%emt 0:00:00]} (53. Qf5 $16) 53... Kf8 $1 $14 {[%emt 0:00:06]} 54. Qg4 {[%emt 0:00:00]} Qc2 $1 {[%emt 0:05:22]} 55. Qf3 {[%emt 0:00:00]} Nc6 {[%emt 0:07:58]} 56. Kg2 {[%emt 0:00:00]} Ne7 {[%emt 0:01:45]} 57. Ne6+ {[%emt 0:00:00]} Kf7 {[%emt 0:00:44]} 58. Nd4 {[%emt 0:00:00]} Qc5 {[%emt 0:00:09]} 59. Qb7 {[%emt 0:00:00]} h5 {[%emt 0:02:55]} 60. Qd7 {[%emt 0:00:07]} Qe5 {[%emt 0:01:11]} 61. Kg1 {[%emt 0:00:41]} g5 {[%emt 0:01:53]} (61... Qe4 $11) 62. Nc6 {[%emt 0:02:25]} (62. Nb5 $16) 62... Qe4 $1 $11 {[%emt 0:00:20]} 63. Nd8+ {[%emt 0:03:06]} Kf8 $1 {[%emt 0:00:27]} 64. Ne6+ {[%emt 0:00:06]} Kf7 {[%emt 0:00:05]} 65. Nd8+ {[%emt 0:00:04]} Kf8 $1 {[%emt 0:00:05]} 66. Qd6 {[%emt 0:02:44]} Qb1+ {[%emt 0:01:41]} 67. Kh2 {[%emt 0:00:38]} Qf5 {[%emt 0:00:11]} 68. Kg2 {[%emt 0:01:03]} Qe4+ {[%emt 0:00:42]} (68... Ke8 $5) 69. Kg1 {[%emt 0:00:38]} Qb1+ {[%emt 0:00:06]} 70. Kh2 {[%emt 0:00:06]} Qf5 {[%emt 0:00:05]} 71. Kg2 {[%emt 0:00:33]} Qe4+ {[%emt 0:00:05]} 72. Kg1 {[%emt 0:00:19]} 1/2-1/2

[Event "4NCL 2023-2024"]
[Site "Daventry"]
[Date "2024.05.05"]
[Round "10.6"]
[White "Erdos, Viktor"]
[Black "Turner, Matthew J"]
[Result "1/2-1/2"]
[ECO "D63"]
[WhiteElo "2546"]
[BlackElo "2454"]
[Annotator "TA"]
[PlyCount "35"]
[EventDate "2023.11.11"]
[EventType "team-tourn"]
[EventCountry "ENG"]
[SourceTitle "playchess.com"]
[Source "ChessBase"]
[SourceQuality "1"]
[TimeControl "40/6000+30:3000+30"]

{[%evp 14,35,20,13,22,27,15,6,0,8,50,12,29,15,22,22,20,12,46,2,9,12,0,-13]} 1. d4 {[%emt 0:00:05]} Nf6 {[%emt 0:00:11]} 2. c4 {[%emt 0:00:39]} e6 {[%emt 0:00:11]} 3. Nf3 {[%emt 0:00:36]} d5 {[%emt 0:01:00]} 4. Nc3 {[%emt 0:01:01]} Nbd7 {[%emt 0:01:16]} 5. Bg5 {[%emt 0:04:28]} h6 {[%emt 0:01:54]} 6. Bh4 {[%emt 0:00:10]} Be7 {[%emt 0:00:50]} 7. e3 {[%emt 0:00:08]} O-O {[%emt 0:00:58]} 8. Rc1 {[%emt 0:00:04]} c5 {[%emt 0:02:49]} 9. dxc5 {[%emt 0:01:24]} dxc4 {[%emt 0:00:39]} 10. Bxc4 {[%emt 0:02:08]} Nxc5 {[%emt 0:02:42]} 11. O-O {[%emt 0:00:14]} Bd7 {[%emt 0:15:58]} 12. Ne5 {[%emt 0:06:26] aiming for b4.} Be8 {[%emt 0:02:26]} 13. Qe2 {[%emt 0:15:50]} Nfd7 {[%emt 0:07:49]} 14. Bg3 {[%emt 0:03:56][%cal Bh4g3,Bg3e5,Be5d4][%mdl 32]} Nxe5 {[%emt 0:01:15]} 15. Bxe5 {[%emt 0:00:06]} Nd7 {[%emt 0:00:32]} 16. Rfd1 {[%emt 0:32:46]} Qa5 {[%emt 0:01:23] Repels Bb5} 17. Bd4 {[%emt 0:02:48]} Ne5 {[%emt 0:07:21] Repels Qf3} 18. Bxe5 {[%emt 0:16:56] Not much happened in this game.   Weighted Error Value: White=0.10 (very precise) /Black=0.04 (flawless) .  Inaccurate:     	White=2     	Black=1      OK:         	White=5     	Black=8} 1/2-1/2

[Event "4NCL 2023-2024"]
[Site "Daventry"]
[Date "2024.05.05"]
[Round "10.7"]
[White "Gasanov, Eldar"]
[Black "Jaracz, Pawel"]
[Result "1/2-1/2"]
[ECO "E12"]
[WhiteElo "2475"]
[BlackElo "2470"]
[Annotator "TA"]
[PlyCount "72"]
[EventDate "2023.11.11"]
[EventType "team-tourn"]
[EventCountry "ENG"]
[SourceTitle "playchess.com"]
[Source "ChessBase"]
[SourceQuality "1"]
[TimeControl "40/6000+30:3000+30"]

{[%evp 12,72,7,-10,0,-39,-56,-56,0,0,0,0,0,-1,0,-3,0,-10,16,18,24,28,14,7,37,21,27,27,18,20,30,31,38,29,37,36,107,119,107,117,108,110,92,110,173,66,58,4,4,3,3,0,0,0,3,3,10,3,4,0,0,0,0]} 1. d4 {[%emt 0:00:14]} Nf6 {[%emt 0:00:13]} 2. c4 {[%emt 0:00:31]} e6 {[%emt 0:00:28]} 3. Nf3 {[%emt 0:01:57]} b6 {[%emt 0:00:34]} 4. Nc3 {[%emt 0:03:57]} Bb4 {[%emt 0:01:04]} 5. Qb3 {[%emt 0:03:21]} c5 {[%emt 0:01:12]} 6. Bg5 {[%emt 0:00:18]} Bb7 {[%emt 0:01:38]} 7. e3 {[%emt 0:01:10]} Nc6 {[%emt 0:05:41]} 8. a3 {[%emt 0:07:30]} Na5 {[%emt 0:11:17]} 9. Qc2 {[%emt 0:01:58]} Be4 {[%emt 0:05:16]} (9... Bxc3+ $15 10. Qxc3 Bxf3 11. gxf3 cxd4 12. exd4 Rc8) 10. Bd3 $11 {[%emt 0:02:58][%cal Oa3b4]} Bxd3 {[%emt 0:01:09]} 11. Qxd3 {[%emt 0:00:11]} Bxc3+ {[%emt 0:00:17]} 12. bxc3 {[%emt 0:05:05]} h6 {[%emt 0:26:08]} 13. Bh4 {[%emt 0:01:58]} Rc8 {[%emt 0:52:03]} 14. Nd2 {[%emt 1:16:22]} cxd4 {[%emt 0:00:00]} 15. cxd4 {[%emt 0:00:00]} d5 {[%emt 0:00:00]} 16. cxd5 {[%emt 0:00:00]} exd5 {[%emt 0:01:30]} 17. Qf5 {[%emt 0:00:00]} Qd7 {[%emt 0:00:00]} 18. Qe5+ {[%emt 0:00:00]} Qe6 {[%emt 0:00:00]} 19. Bxf6 {[%emt 0:00:00]} (19. Qxe6+ fxe6 20. Ke2 Kd7 $11) 19... gxf6 {[%emt 0:00:00]} 20. Qf4 {[%emt 0:00:00]} Rg8 {[%emt 0:00:00]} 21. g3 {[%emt 0:00:00]} (21. Qxh6 Rxg2 22. Rf1 Qf5 $19) 21... Rc2 {[%emt 0:00:00]} 22. Rd1 {[%emt 0:00:00][%cal Oe1g1]} Rg4 {[%emt 0:03:00]} 23. Qb8+ {[%emt 0:00:00]} Rc8 {[%emt 0:00:30]} (23... Qc8 $1 $14 24. Qxc8+ (24. Qxa7 Rb2 $11) 24... Rxc8) 24. Qxa7 $16 {[%emt 0:00:00]} Rxd4 {[%emt 0:00:00]} 25. O-O {[%emt 0:00:00]} Rd3 {[%emt 0:00:00]} 26. Nf3 {[%emt 0:00:00]} Rxd1 {[%emt 0:00:00]} 27. Rxd1 {[%emt 0:00:00]} Qg4 {[%emt 0:00:00] Prevents Nd4} (27... Nc4 $16 {was necessary.}) 28. Rxd5 {[%emt 0:00:00]} (28. Qxb6 Qxf3 29. Qb5+ Kf8 30. Qxd5 Qxd5 31. Rxd5 Rc1+ 32. Kg2 Nc4 $19) (28. Qa6 $18) 28... Nc6 $1 $14 {[%emt 0:00:00]} 29. Qb7 {[%emt 0:03:01]} ({Inferior is} 29. Qxb6 Qxf3 30. Qb5 Kf8 $17) ({Better is} 29. h3 $1 $14 Qxg3+ 30. fxg3 Nxa7 31. Rh5) 29... Nd8 $1 $132 {[%emt 0:00:00][%mdl 2048] [#] Black puts up resistance. The position is equal.} 30. Rxd8+ {[%emt 0:01:12]} Rxd8 {[%emt 0:00:00][%mdl 4096] Endgame. KQR-KQN} 31. Qc6+ {[%emt 0:00:26]} Ke7 {[%emt 0:00:34]} 32. Nd4 {[%emt 0:01:28]} Rxd4 {[%emt 0:00:19]} 33. exd4 {[%emt 0:00:08]} Qxd4 {[%emt 0:00:02]} 34. a4 {[%emt 0:00:46]} Kf8 {[%emt 0:00:54]} 35. h4 {[%emt 0:01:41]} Kg7 {[%emt 0:00:07]} 36. Kg2 {[%emt 0:00:18]} f5 {[%emt 0:02:29] Weighted Error Value: White=0.13 (very precise) /Black=0.11 (very precise) .  Mistake:       	White=2     	Black=3      Inaccurate:     	White=1     	Black=1      OK:         	White=9     	Black=12     Best:        	White=3     	Black=1      Strong:       	---       	Black=2      Brilliant:      	White=1     	---} 1/2-1/2

[Event "4NCL 2023-2024"]
[Site "Daventry"]
[Date "2024.05.05"]
[Round "10.8"]
[White "Terbe, Julianna"]
[Black "Toma, Katarzyna"]
[Result "1/2-1/2"]
[ECO "D02"]
[WhiteElo "2276"]
[BlackElo "2204"]
[Annotator "TA"]
[PlyCount "51"]
[EventDate "2023.11.11"]
[EventType "team-tourn"]
[EventCountry "ENG"]
[SourceTitle "playchess.com"]
[Source "ChessBase"]
[SourceQuality "1"]
[TimeControl "40/6000+30:3000+30"]

{[%evp 9,51,10,8,8,9,-3,-2,-7,-5,-25,22,28,7,15,22,19,61,24,33,0,33,3,38,0,25,-8,-6,-11,-21,-25,-13,-24,-20,-47,0,0,0,0,0,0,20,14,19,6]} 1. d4 {[%emt 0:00:04]} Nf6 {[%emt 0:00:08]} 2. Nf3 {[%emt 0:00:09]} e6 {[%emt 0:00:17]} 3. Bf4 {[%emt 0:00:10]} d5 {[%emt 0:00:27]} 4. e3 {[%emt 0:00:08]} Bd6 {[%emt 0:00:16]} 5. Nbd2 {[%emt 0:00:15]} b6 {[%emt 0:00:35]} 6. c3 {[%emt 0:01:28]} O-O {[%emt 0:02:08]} 7. Ne5 {[%emt 0:05:20]} c5 {[%emt 0:05:03]} 8. Qf3 {[%emt 0:08:33]} Qc7 {[%emt 0:12:47]} 9. h4 {[%emt 0:02:10][%cal Bh2h4,Bh4h5][%mdl 32]} Ba6 {[%emt 0:04:05]} (9... cxd4 $142 10. cxd4 Nbd7) 10. Bxa6 $11 {[%emt 0:01:33]} Nxa6 {[%emt 0:00:04]} 11. h5 {[%emt 0:01:51]} cxd4 {[%emt 0:05:29]} 12. exd4 {[%emt 0:05:29]} Ne8 {[%emt 0:23:40]} (12... Nc5 {keeps more tension.} 13. h6 g6 14. Bh2 Nce4) 13. Nd3 {[%emt 0:32:41] White is more active.} Rc8 {[%emt 0:06:32]} 14. O-O {[%emt 0:04:00]} Nb8 {[%emt 0:04:27][%cal Ba6b8,Bb8d7,Bd7f6,Bf6e4][%mdl 32]} 15. Rae1 {[%emt 0:00:47]} Nd7 {[%emt 0:02:48]} 16. Re3 {[%emt 0:04:13]} a5 {[%emt 0:04:36]} 17. Qg4 {[%emt 0:03:19]} Ndf6 {[%emt 0:07:37]} 18. Qh4 {[%emt 0:01:18]} Bxf4 {[%emt 0:00:42]} 19. Nxf4 {[%emt 0:00:05]} h6 {[%emt 0:02:16]} 20. Nd3 {[%emt 0:03:58]} Nd6 {[%emt 0:01:24]} 21. g4 {[%emt 0:03:29] Prevents Nf5.} Qd8 {[%emt 0:01:00]} (21... Nfe4 $15 {should be considered.} 22. Re2 Nxd2 23. Rxd2 Ra8) 22. f4 {[%emt 0:07:29][%cal Bf2f4,Bf4f5][%mdl 32] The position is equal.} Nfe4 {[%emt 0:00:45]} 23. Qxd8 {[%emt 0:01:20]} Rfxd8 {[%emt 0:00:08]} 24. Nxe4 {[%emt 0:00:26]} Nxe4 {[%emt 0:06:54]} 25. f5 {[%emt 0:05:54]} b5 {[%emt 0:09:59]} 26. a3 {[%emt 0:05:40] Weighted Error Value: White=0.11 (very precise) /Black=0.14 (very precise) .  Mistake:       	---       	Black=2      Inaccurate:     	White=5     	Black=3      OK:         	White=8     	Black=8} 1/2-1/2

[Event "4NCL 2023-2024"]
[Site "Daventry"]
[Date "2024.05.05"]
[Round "10.9"]
[White "Pein, Malcolm"]
[Black "Jones, Gawain C B"]
[Result "0-1"]
[ECO "D30"]
[WhiteElo "2272"]
[BlackElo "2620"]
[Annotator "TA"]
[PlyCount "50"]
[EventDate "2023.11.11"]
[EventType "team-tourn"]
[EventCountry "ENG"]
[SourceTitle "playchess.com"]
[Source "ChessBase"]
[SourceQuality "1"]
[TimeControl "40/6000+30:3000+30"]

{[%evp 9,50,35,35,32,36,35,29,32,33,27,38,35,32,27,50,16,33,27,39,38,36,19,38,4,61,0,0,0,0,0,0,-33,-15,-20,-17,-115,-131,-86,-16,-64,-62,-519,-517]} 1. d4 {[%emt 0:00:05]} d5 {[%emt 0:07:04]} 2. c4 {[%emt 0:00:24]} e6 {[%emt 0:00:05]} 3. Nf3 {[%emt 0:00:06]} a6 {[%emt 0:00:05]} 4. Bg5 {[%emt 0:01:25]} Be7 {[%emt 0:00:39]} 5. Bxe7 {[%emt 0:01:25]} Nxe7 {[%emt 0:00:09]} 6. Nbd2 {[%emt 0:00:16]} Nd7 {[%emt 0:01:00]} 7. g3 {[%emt 0:01:23]} b6 {[%emt 0:02:15]} 8. Bg2 {[%emt 0:00:08] White has an edge.} Bb7 {[%emt 0:00:20]} 9. O-O {[%emt 0:00:58]} O-O {[%emt 0:02:53]} 10. cxd5 {[%emt 0:01:08]} exd5 {[%emt 0:01:19]} 11. Rc1 {[%emt 0:00:35]} Rc8 {[%emt 0:03:12]} 12. Qb3 {[%emt 0:13:13]} c5 {[%emt 0:04:50]} 13. dxc5 {[%emt 0:00:10]} Nxc5 {[%emt 0:00:06]} 14. Qa3 {[%emt 0:02:18]} Nc6 {[%emt 0:03:30]} 15. Nb3 {[%emt 0:08:56]} Ne6 {[%emt 0:00:43]} 16. Rcd1 {[%emt 0:17:00]} Qf6 {[%emt 0:03:49]} ({Black should try} 16... a5 $11) 17. e3 {[%emt 0:08:00]} (17. Rxd5 $14 a5 18. Rd6) 17... a5 $11 {[%emt 0:02:38]} 18. Rd2 {[%emt 0:00:57]} (18. Rxd5 $2 Nb4 19. Rd2 Bxf3 $19) 18... Nb4 {[%emt 0:06:03]} 19. Nfd4 {[%emt 0:06:59]} Ng5 {[%emt 0:05:21]} 20. Qa4 {[%emt 0:02:03]} Ba6 {[%emt 0:12:30]} 21. Rfd1 {[%emt 0:02:12]} Rc4 {[%emt 0:03:28]} 22. Qd7 {[%emt 0:07:27] [#]} (22. Rc1 $11 {keeps the balance.}) 22... Bc8 $1 $17 {[%emt 0:01:25]} 23. Qb5 {[%emt 0:00:42] [#]} Qd8 {[%emt 0:22:27]} (23... Rd8 $1 $17 {[%cal Oc8d7] Hoping for ...Bd7!} 24. Ne6 Nxe6 (24... Qxe6 $2 25. Qxc4 h6 26. Qc7 $18) 25. Qxb6 Rc2 (25... Nxa2 26. Bxd5 Rxd5 27. Rxd5 $15) 26. Qxa5 Rxd2 27. Rxd2 Nc6) 24. Ne6 {[%emt 0:12:27]} Nxe6 $15 {[%emt 0:09:23]} (24... fxe6 25. Qxc4 Nf7 26. Qh4 Qxh4 27. gxh4 Nxa2 28. e4 dxe4 29. Re1 $16 (29. Bxe4 Nb4 $18)) 25. Rxd5 {[%emt 0:06:04][%mdl 8192]} (25. Bxd5 $15 Ba6 26. Bxc4 Bxb5 27. Rxd8 Bxc4 28. Rxf8+ Kxf8 29. Rd6) 25... Nxd5 {[%emt 0:01:39] Weighted Error Value: White=0.42/Black=0.11 (very precise) .  Loses game:     	White=1     	---        Mistake:       	White=3     	Black=2      Inaccurate:     	White=3     	---        OK:         	White=8     	Black=10     Strong:       	---       	Black=1} 0-1